Cogmind - Beta 10.2 @@@ ROGUE MODE // 2021.09.02 @ 05:09:24 Player: qwitwa Result: Destroyed by Y-45 Defender with Heavy Assault Rifle Performance ------------- Evolutions (1) 500 Regions Visited (2) 400 Robots Destroyed (23) 115 Value Destroyed (550) 550 Prototype IDs (1) 20 Alien Tech Used (0) 0 Bonus (0) 0 TOTAL SCORE: 1585 Bonus ------- None Cogmind --------- Core Integrity 0/400 Matter 219/300 Energy 7/100 System Corruption 1% Temperature Cool (9) Movement Core (100) Ox1 Location -9/Materials Parts ------- > --- POWER (2) -------- (None) > --- PROPULSION (3) --- (None) > --- UTILITY (2) ------ Shield Generator > --- WEAPON (2) ------- Beam Cannon > --- INVENTORY (4) ---- Aluminum Leg Improved Flight Unit Light Assault Rifle Peak State ------------ > --- POWER ------------ Light Ion Engine > --- PROPULSION ------- Improved Flight Unit Improved Flight Unit > --- UTILITY ---------- Small Storage Unit Small Battery > --- WEAPON ----------- Spread Laser Spread Laser > --- INVENTORY -------- Light Ion Engine Aluminum Leg Aluminum Leg EM Pulse Gun Assault Rifle Assault Rifle [Rating: 13] Favorites ----------- Power Light Ion Engine Engine Light Ion Engine Propulsion Aluminum Leg Leg Aluminum Leg Flight Unit Improved Flight Unit Utility Small Storage Unit Device Shield Generator Storage Small Storage Unit Weapon EM Pulse Gun Energy Gun EM Pulse Gun Energy Cannon Particle Cannon Ballistic Gun Assault Rifle Launcher Grenade Launcher Build | -11 -10 -9 ------- Run | Scr Mat Mat Slots Evolved 2 | . . 2 Power 1 | . . 1 Propulsion 1 | . . 1 Utility . | . . . Weapon . | . . . Parts Attached 26 | 6 11 9 Power 4 | 1 . 3 Engine 4 | 1 . 3 Core . | . . . Reactor . | . . . Propulsion 9 | 2 6 1 Treads . | . . . Leg 6 | 2 3 1 Wheel . | . . . Hover . | . . . Flight 3 | . 3 . Utility 3 | 1 1 1 Device 1 | . . 1 Storage 2 | 1 1 . Processor . | . . . Hackware . | . . . Protection . | . . . Artifact . | . . . Weapon 10 | 2 4 4 Energy Gun 5 | 1 3 1 Energy Cannon 2 | . . 2 Ballistic Gun 2 | 1 . 1 Ballistic Cannon . | . . . Launcher 1 | . 1 . Special Weapon . | . . . Impact Weapon . | . . . Slashing Weapon . | . . . Piercing Weapon . | . . . Special Melee Weapon . | . . . Unidentified Prototypes 1 | . 1 . Parts Lost 15 | . 1 14 Power 4 | . . 4 Propulsion 3 | . . 3 Utility 2 | . . 2 Weapon 6 | . 1 5 Highest Loss Streak 4 | . 1 4 Average Slot Usage (%) 68 | . 97 51 Engine 10 | . 14 8 Leg 14 | . 21 9 Flight 2 | . 5 . Storage 22 | . 26 19 Energy Gun 10 | . 20 4 Ballistic Gun 2 | . 1 3 Launcher 5 | . 4 5 Naked Turns 18 | . . 18 Heaviest Build 22 | 11 14 22 Greatest Support 20 | 20 20 20 Greatest Overweight (x) 4 | . 2 4 Average Overweight (x) . | . . . Largest Inventory Capacity 6 | 6 6 6 Average Capacity 5 | 5 6 5 Most Carried 6 | 2 6 6 Average Carried 3 | 1 4 4 Final Capacity 6 | 6 6 4 Final Carried 6 | 2 6 3 Class Distribution -------------------- 100% | Mutant Dominant Class ---------------- Mutant | -10/Materials Mutant | -9/Materials Resources | -11 -10 -9 ----------- Run | Scr Mat Mat Matter Collected 574 | 269 121 184 Remotely . | . . . Salvage Created 532 | 68 183 281 Parts 46 | 4 13 29 Haulers Intercepted . | . . . Recyclers Shooed 2 | . 1 1 Parts Field Recycled . | . . . Retrieved Matter . | . . . Parts Self-Destructed . | . . . Prevented . | . . . Kills | -11 -10 -9 ------- Run | Scr Mat Mat Combat Hostiles Destroyed 17 | . 9 8 Guns 8 | . 6 2 Cannons 2 | . . 2 AOE 7 | . 3 4 Classes Destroyed 7 | 1 2 4 Worker 1 | . . 1 Builder 3 | . . 3 Recycler 1 | 1 . . Watcher 1 | . . 1 Swarmer 5 | . 3 2 Grunt 11 | . 6 5 Sentry 1 | . . 1 Best Kill Streak 3 | 1 3 3 Combat Bots Only 3 | . 3 2 Max Kills in Single Turn 2 | 1 2 2 Gunslinging . | . . . Exploded 1 | . 1 1 Melee . | . . . Uniques/NPCs Destroyed . | . . . Combat | -11 -10 -9 -------- Run | Scr Mat Mat Damage Taken 1596 | . 423 1173 Core 498 | . 89 409 Absorbed by Shields 13 | . . 13 Core Remaining (%) 82 | 100 64 . Volleys Fired 72 | 3 20 49 Largest 2 | 2 2 2 Hottest 130 | 60 130 85 Shots Fired 108 | 6 39 63 Gun 80 | 6 33 41 Cannon 9 | . . 9 Launcher 19 | . 6 13 Special . | . . . Kinetic 29 | 3 . 26 Thermal 41 | . 30 11 Explosive 19 | . 6 13 Electromagnetic 19 | 3 3 13 Robot Hit Streak 9 | 3 5 9 Robot Miss Streak 12 | 1 12 4 Penetration Max . | . . . Secondary Targets . | . . . Shots Hit Robots 75 | 4 30 41 Core Hits 64 | 2 35 27 Critical Hits . | . . . Critical Kills . | . . . Critical Parts Destroyed . | . . . Melee Attacks . | . . . Impact . | . . . Slashing . | . . . Piercing . | . . . Sneak Attacks . | . . . Combat Hostiles . | . . . Follow-up Attacks . | . . . Damage Inflicted 1672 | 50 675 947 Guns 659 | 50 264 345 Cannons 101 | . . 101 Explosions 871 | . 410 461 Melee . | . . . Ramming 41 | . 1 40 Kinetic 223 | 12 . 211 Thermal 377 | . 236 141 Explosive 871 | . 410 461 Electromagnetic 160 | 38 28 94 Impact . | . . . Slashing . | . . . Piercing . | . . . Highest Corruption 1 | . . 1 Average Corruption 1 | . . 1 Corruption Purged . | . . . Effects 2 | . . 2 Message Errors 1 | . . 1 Data Loss (minor) 1 | . . 1 Overload Shots . | . . . Overflow Damage 127 | . 74 53 Projectiles . | . . . Explosions 127 | . 74 53 Melee . | . . . Knockbacks 1 | . . 1 Impact 1 | . . 1 Kinetic . | . . . Secondary . | . . . Self-Inflicted Damage 263 | . 114 149 Shots 9 | . 5 4 Rammed 21 | . 1 20 Targets Rammed 21 | . 1 20 Kicked . | . . . Crushed . | . . . Highest Temperature 472 | . 472 90 Average Temperature 144 | . 190 40 Received Heat Transfer 555 | . 159 396 Effects 8 | . 8 . Shutdowns 3 | . 3 . Energy Bleed 2 | . 2 . Matter Decay 1 | . 1 . Short Circuit 1 | . 1 . Damage (minor) 1 | . 1 . Siege Activations . | . . . Robots Corrupted . | . . . Combat Hostiles . | . . . Parts Fried . | . . . Impact Corruptions . | . . . Robots Melted . | . . . Combat Hostiles . | . . . Parts Melted . | . . . Heat Transferred 540 | . 305 235 Parts Sabotaged . | . . . Parts Stolen . | . . . Parts Stripped . | . . . Power Chain Reactions . | . . . Missiles Intercepted . | . . . Alert | -11 -10 -9 ------- Run | Scr Mat Mat Peak Influence 211 | 5 211 163 Initial 16 | . 3 16 Average 55 | 1 82 52 Maximum Alert Level 1 | . 1 . Low Security (%) 99 | 100 99 100 Level 1 . | . . . Level 2 . | . . . Level 3 . | . . . Level 4 . | . . . Level 5 . | . . . High Security . | . . . Max Security . | . . . Squads Dispatched 5 | . 2 3 Investigation 2 | . 1 1 Extermination . | . . . Reinforcement 3 | . 1 2 Assault . | . . . Garrison . | . . . Intercept . | . . . Construction Impeded . | . . . Haulers Reinforced . | . . . Stealth | -11 -10 -9 --------- Run | Scr Mat Mat Distress Signals 2 | . 1 1 Communications Jammed . | . . . Distress Signals . | . . . Times Spotted 30 | . 12 18 Peak Tracking Total 5 | . 3 5 Tactical Retreats . | . . . Traps | -11 -10 -9 ------- Run | Scr Mat Mat Traps Triggered 1 | . . 1 Indirectly . | . . . Trap Hack Attempts . | . . . Triggered . | . . . Disarmed . | . . . Reprogrammed . | . . . Reused . | . . . Traps Extracted . | . . . Installed . | . . . Triggered . | . . . Machines | -11 -10 -9 ---------- Run | Scr Mat Mat Machines Disabled 3 | . . 3 Max in Single Turn 1 | . . 1 Machines Sabotaged . | . . . Garrisons Compromised . | . . . Overloaded Fab Kills . | . . . Fab Network Shutdowns . | . . . Hacking | -11 -10 -9 --------- Run | Scr Mat Mat Machines Accessed 4 | . 4 . Terminals 2 | . 2 . Fabricators . | . . . Repair Stations 1 | . 1 . Recycling Units 1 | . 1 . Scanalyzers . | . . . Garrison Access . | . . . Total Hacks 18 | . 18 . Successful 11 | . 11 . Failed 7 | . 7 . Catastrophic . | . . . Database Lockouts . | . . . Manual . | . . . Terminals 9 | . 9 . Fabricators . | . . . Repair Stations 8 | . 8 . Recycling Units 1 | . 1 . Scanalyzers . | . . . Garrison Access . | . . . Terminal Hacks 3 | . 3 . Alert Level 1 | . 1 . Locate Traps 1 | . 1 . Registered Components 1 | . 1 . Fabricator Hacks . | . . . Repair Station Hacks 7 | . 7 . Scan Component 5 | . 5 . Repair 1 | . 1 . Refit 1 | . 1 . Recycling Unit Hacks 1 | . 1 . Report Inventory 1 | . 1 . Scanalyzer . | . . . Garrison Access Hacks . | . . . Unauthorized Hacks . | . . . Terminals . | . . . Fabricators . | . . . Repair Stations . | . . . Recycling Units . | . . . Scanalyzers . | . . . Garrison Access . | . . . Data Cores Recovered . | . . . Used . | . . . Hacking Detections 3 | . 3 . Full Trace Events 1 | . 1 . Feedback Events . | . . . Feedback Blocked . | . . . Robot Schematics Acquired . | . . . Robots Built . | . . . Matter . | . . . Time . | . . . Total Robot Build Rating . | . . . Part Schematics Acquired . | . . . Parts Built . | . . . Matter . | . . . Time . | . . . Total Part Build Rating . | . . . Parts Repaired . | . . . Time 26 | . 26 . Parts Recycled . | . . . Recycled Matter . | . . . Retrieved Matter . | . . . Retrieved Components . | . . . Parts Scanalyzed . | . . . Part Schematics Acquired . | . . . Parts Damaged . | . . . Bothacking | -11 -10 -9 ------------ Run | Scr Mat Mat Used RIF Installer . | . . . Robots Hacked . | . . . Non-combat . | . . . Combat . | . . . Robot Hacks Applied . | . . . Relay Couplers Released . | . . . Robots Rewired . | . . . Allies Hacked . | . . . Hacks Repelled . | . . . Allies | -11 -10 -9 -------- Run | Scr Mat Mat Total Allies . | . . . Largest Group . | . . . Highest-Rated Group . | . . . Highest-Rated Ally . | . . . Total Orders . | . . . Ally Attacks . | . . . Total Damage . | . . . Kills . | . . . Allies Corrupted . | . . . Allies Melted . | . . . Intel | -11 -10 -9 ------- Run | Scr Mat Mat Robot Analysis Total . | . . . Derelict Logs Recovered . | . . . Drone Launches . | . . . Drone Recoveries . | . . . Exploration | -11 -10 -9 ------------- Run | Scr Mat Mat Turns Passed 1224 | 161 410 653 Spaces Moved 811 | 137 280 394 Core 213 | 33 . 180 Treads . | . . . Legs 537 | 104 219 214 Wheels . | . . . Hover . | . . . Flight 61 | . 61 . Fastest Speed 50 | 50 102 50 Average Speed 119 | 103 116 127 Slowest Speed 250 | 120 175 250 Overloaded Moves . | . . . Propulsion Burnouts . | . . . Robots Hopped . | . . . Cave-ins Triggered . | . . . Exploration Rate (%) 25 | 5 46 26 Regions Visited 2 Branch Regions . Pre-discovered Areas . | . . . Known Exits Taken . | . . . Unknown Exits Taken 2 | 1 1 . Scrap Searched . | . . . Spaces Dug . | . . . Terrain Destroyed 109 | . 49 60 Melee . | . . . Projectile . | . . . AOE 109 | . 49 60 Terrain Rammed . | . . . Walls Destroyed . | . . . Machines Disabled . | . . . Actions | -11 -10 -9 --------- Run | Scr Mat Mat Total 949 | 147 327 475 Wait 2 | . . 2 Move 809 | 136 279 394 Hop . | . . . Pick Up 8 | 2 5 1 Fast Attach 17 | 6 6 5 Attach 9 | . 5 4 Detach 6 | . 6 . Swap . | . . . Drop 5 | . 5 . Fire 72 | 3 20 49 Melee . | . . . Ram 21 | . 1 20 Kick . | . . . Crush . | . . . Escape Stasis . | . . . Rewire . | . . . Trap . | . . . Miscellaneous . | . . . Route ------- -11/Scrapyard -10/Materials (discovered 3 exits: [*Mat x2] / [*Min]) -9/Materials History --------- Turn | Location | Event 6 | -11/Scrapyard | Discovered new exit (range 13) 162 | -11/Scrapyard | Entered Materials 188 | -10/Materials | Discovered new exit (range 15) 311 | -10/Materials | Build established: Mutant 328 | -10/Materials | Discovered new exit (range 5) 521 | -10/Materials | Discovered new exit (range 12) 572 | -10/Materials | Entered another Materials area 572 | -9/Materials | Evolved 2 slots: Power x1, Propulsion x1 856 | -9/Materials | Lost 4 parts (1p2n1w) 958 | -9/Materials | Lost 4 parts (1p1n2w) 1115 | -9/Materials | Core integrity fell below 50% 1184 | -9/Materials | Core integrity fell below 20% 1225 | -9/Materials | Destroyed by Y-45 Defender with Heavy Assault Rifle Last Messages --------------- 01128_ WVU89XP>HU6UYVW97CLDM5AY <9& UZE7 01154_ Slammed into U-05 Engineer. 01170_ Slammed into O-16 Technician. 01170_ Destabilizing: Core damaged (-4). 01175_ K-01 Serf cleans the Atomic Centrifuge. 01177_ System corrupted: Component data lost. 01178_ K-01 Serf cleans the Atomic Centrifuge. 01181_ Acquired Particle Cannon. 01184_ G-34 Mercenary destroyed. 01185_ K-01 Serf cleans the Atomic Centrifuge. 01190_ G-34 Mercenary destroyed. 01195_ Particle Cannon destroyed. 01195_ Sml. Storage Unit destroyed. 01197_ ALERT: Hostiles spotted, dispatching reinforcements to Terminal M003. 01198_ K-01 Serf collects debris. 01199_ Slammed into K-01 Serf. 01199_ K-01 Serf knocked back. 01207_ Acquired Beam Cannon. 01213_ Acquired Shield Generator. Map ----- +----------------------------------------------------+ | ?#####+#### ### + | | # #??# ### # | | # """ #### ################# ###+#### | | # """ # #???????##??????# # ## | | # """ # ####????????????# # """ ### | | # /# # #####?######## # """ ### | | # """ #?# # """ / | | # """ #?# # ### | | # """ [ ##?#=** #######?? | | # # ##+### ##?#=%%########???????? | | # """ ## # #?#=[[#??????????????? | | # """ # # #?# #??????????????? | | # """ ## ! # #### #??????????????? | | # ## # #??????????????? | | ####+#### !# ^ #??????????????? | | ???# #??# # #####??????????? | | ???# #??# ######## #"""#??????????? | | ???# #??##/####??????# #"T"#??????????? | | ???# #???# ?########## #" "####+####??? | | ???# #???# ## # T | | ???# #???# ## # | | ???# #???# ## # """ | | ???# #???# ## g# """ ######? | | ???# #???# ## ![ Y/ """ #?????? | | ???# #???# ## !! # #?????? | | ???# #???# ## @[ # #?????? | | ???# #???# ## # """ """ #?????? | | ???# ##### ## # """ """ #?????? | | ???# ########### """ """ #?????? | | ???###### #?????????# ??#?????? | | ????????# ########### ???????? | | ????????# ??????? | | ????????# ##???##???????? | | ????????# #?????????????? | | ????????# ^ #?????????????? | | ????????# !^%#?????????????? | | ????????# +?????????????? | | ????????# ^#?????????????? | | ????????# #?????????????? | | ??######## ######### ##?????????????? | | ??# # #???????# #??????????????? | | ??# # #???????# #??????????????? | | ??#""" + #???????# #??????????????? | | ??#""" # #???????# #??????????????? | | ??#""" # #???????# #??????????????? | | ??# # #???????? #??????????????? | | ??######## #???????? #??????????????? | | ?????????# #?#?????? #??????????????? | | ?????????# # #?????? #??????????????? | | ?????????# ??????? #??????????????? | +----------------------------------------------------+ Best States ------------- Heat Dissipation 28 Energy Generation 17 Energy Capacity 515 Matter Stores 300 Matter Capacity 300 Sight Range 16 Terrain Scan Density 10 Evasion (%) 50 Item Schematics ----------------- None Robot Schematics ------------------ None Fabricated ------------ Nothing Alien Tech Used ----------------- None Achievements -------------- Let's See Who's Tougher Challenges ------------ None Game ------ Seed GravityCoolingKit Manual? 0 Play Time 00:21:31 Cumulative 3.7 hours Start 2021.09.02 @ 04:52:16 End 2021.09.02 @ 05:09:24 Sessions 1 Manual Loads 0 Difficulty Rogue Special Mode None Game No. 4 Rogue 4 Adventurer 0 Explorer 0 Win Type - Total 0 Types 0/0/0/0/0/0/0/0/0 Lore% 10 Gallery% 7 Achievement% 7 Wizard Run 0 Options --------- ASCII 0 Keyboard 1 Movement Arrows Keybinds 0 Fullscreen 1 Font 16/Dina Map View 76x50 Tactical HUD 1 Map Filters NONE Filters NONE Steam 1 RUN: 0bef7bbf-2053-44bb-9c85-cb48f0b530c6